fUST/lending_fUST_20251017
["ID","MTS","AMOUNT","RATE_DAILY","PERIOD"]
[391609410,1760700640781,-493.08904,0.00033961,30]
[391609411,1760700640791,-493.08904,0.00033961,30]
[391609412,1760700640801,-493.08904,0.00033961,30]
[391609413,1760700640810,-493.08904,0.00033961,30]
[391609414,1760700640824,-493.08904,0.00033961,30]
[391609415,1760700640833,-493.089048,0.00033961,30]
[391609416,1760700640842,-196.803711,0.00033961,30]
[391609417,1760700640851,-196.803711,0.00033961,30]
[391609418,1760700640861,-196.803711,0.00033961,30]
[391609419,1760700640870,-196.803711,0.00033961,30]
[391609421,1760700640879,-196.803711,0.00033961,30]
[391609422,1760700640889,-196.803711,0.00033961,30]
[391609423,1760700640898,-196.803711,0.00033961,30]
[391609424,1760700640907,-196.803703,0.00033961,30]
[391609425,1760700640916,-60300.15443923,0.00033964,30]
[391609426,1760700640926,-600241.07957356,0.00033964,30]
[391609427,1760700640997,-531.3,0.00031501,2]
[391609453,1760700646629,-1071.72,0.00031501,2]
[391609454,1760700646639,-200.0,0.00032876,2]
[391609455,1760700646649,-162.0,0.00032879,7]
[391609456,1760700646659,-330.68789909,0.00032879,7]
[391609457,1760700646668,-340.91428934,0.00032979,7]
[391609458,1760700646677,-500.0,0.00032979,7]
[391609459,1760700646686,-243.20349942,0.00032979,7]
[391609460,1760700646695,-528.683529,0.00033664,30]
[391609461,1760700646704,-528.683529,0.00033664,30]
[391609462,1760700646718,-151.0,0.00033664,30]
[391609463,1760700646727,-55.00791525,0.000338,13]
[391609467,1760700923896,150.0,0.00025205,2]
[391609468,1760700924368,172.5,0.00025805,2]
[391609469,1760700924844,195.0,0.00026405,2]
[391609470,1760700925367,217.5,0.00027005,2]
[391609472,1760700982840,402.69031254,0.00027,2]
[391609473,1760701011804,-160.0,0.00030472,2]
[391609474,1760701026789,-364.667386,0.00030472,2]
[391609475,1760701060603,4436.78427639,0.00027,2]
[391609476,1760701080889,161.66,0.00015494,2]
[391609477,1760701081159,161.65,0.00015494,2]
[391609478,1760701087866,-641.979412,0.00031013,4]
[391609483,1760701261253,2779.099136,0.00027,2]
[391609488,1760701494288,399.637634,0.00013699,2]
[391609489,1760701494481,399.637634,0.00020187,2]
[391609490,1760701494689,399.637634,0.00026676,2]
[391609493,1760701617128,-311.89088875,0.00028646,2]
[391609498,1760701808266,223.23,0.00026543,4]
[391609518,1760701831740,-300.0,0.00029433,2]
[391609520,1760701831751,-371.96876116,0.00029433,2]
[391609524,1760701831793,-560.16633354,0.00029433,2]
[391609640,1760701837641,-267.8649053,0.00029433,2]
[391609642,1760701837651,-697.3,0.00029434,3]
[391609644,1760701837660,-348.65,0.00029434,3]
[391609646,1760701837669,-174.32,0.00029434,3]
[391609648,1760701837678,-906.14,0.00029434,10]
[391609650,1760701837688,-523.01,0.00029434,3]
[391609651,1760701837697,-567.1716871,0.00029434,10]
[391609652,1760701837708,-187.9383129,0.00029434,10]
[391609653,1760701837718,-16918.0761105,0.00029444,2]
[391609654,1760701837731,-6402.56118416,0.00029444,2]
[391609655,1760701837741,-33483.59954787,0.00029444,2]
[391609656,1760701837752,-184483.93585747,0.00029444,2]
[391609657,1760701837762,-3825.68,0.000295,7]
[391609658,1760701837772,-151.0,0.000297,12]
[391609659,1760701837781,-180.63441632,0.000299,2]
[391609660,1760701837796,-151.0,0.000299,20]
[391609661,1760701837806,-401.49,0.0003,7]
[391609662,1760701837819,-300.0,0.00030022,30]
[391609663,1760701837828,-300.0,0.00030022,30]
[391609664,1760701837838,-300.0,0.00030022,30]
[391609665,1760701837847,-300.0,0.00030022,30]
[391609666,1760701837857,-300.0,0.00030022,30]
[391609667,1760701837866,-300.0,0.00030022,30]
[391609668,1760701837876,-300.0,0.00030022,30]
[391609669,1760701837885,-300.0,0.00030022,30]
[391609670,1760701837895,-300.0,0.00030022,30]
[391609671,1760701837904,-300.0,0.00030022,30]
[391609672,1760701837916,-300.0,0.00030022,30]
[391609673,1760701837925,-151.0,0.000302,11]
[391609674,1760701837934,-151.0,0.000305,19]
[391609675,1760701837943,-160.0,0.00030565,2]
[391609676,1760701837952,-151.0,0.000307,20]
[391609677,1760701837962,-1394.6,0.00030804,3]
[391609678,1760701837971,-697.3,0.00030804,3]
[391609679,1760701837979,-348.64,0.00030804,3]
[391609680,1760701837989,-151.0,0.00031,15]
[391609681,1760701837998,-306.09369621,0.00031013,4]
[391609682,1760701838009,-151.0,0.000312,11]
[391609683,1760701838018,-154.75,0.00031224,15]
[391609684,1760701838028,-150.16,0.00031224,15]
[391609685,1760701838037,-154.75,0.00031324,15]
[391609686,1760701838047,-2460.49208733,0.00031349,2]
[391609687,1760701838056,-1615.32,0.0003136,2]
[391609688,1760701838068,-99773.67730753,0.00031422,2]
[391609689,1760701838077,-154.75,0.00031424,15]
[391609690,1760701838087,-701154.27,0.00031444,2]
[391609691,1760701838096,-200.0,0.00031444,10]
[391609692,1760701838105,-200.0,0.00031444,10]
[391609693,1760701838115,-200.0,0.00031444,10]
[391609694,1760701838125,-200.0,0.00031444,10]
[391609695,1760701838134,-200.0,0.00031444,10]
[391609696,1760701838143,-200.0,0.00031444,10]
[391609697,1760701838153,-1125.40999998,0.00031449,2]
[391609698,1760701838162,-500.0,0.0003145,5]
[391609699,1760701838171,-500.0,0.0003145,5]
[391609700,1760701838180,-500.0,0.0003145,2]
[391609701,1760701838189,-163.62541443,0.0003145,5]
[391609702,1760701838198,-500.0,0.0003145,5]
[391609703,1760701838208,-500.0,0.0003145,5]
[391609704,1760701838217,-500.0,0.0003145,5]
[391609705,1760701838227,-500.0,0.0003145,5]
[391609706,1760701838237,-500.0,0.0003145,5]
[391609707,1760701838246,-500.0,0.0003145,5]
[391609708,1760701838256,-500.0,0.000315,5]
[391609709,1760701838266,-151.0,0.000315,12]
[391609710,1760701838275,-370.85983081,0.000315,5]
[391609711,1760701838285,-151.0,0.000317,15]
[391609712,1760701838294,-420.0,0.00031741,2]
[391609713,1760701838303,-619.790689,0.00031776,120]
[391609714,1760701838315,-1680.0,0.00031877,3]
[391609715,1760701838325,-761.116789,0.0003188,2]
[391609716,1760701838335,-100000.0,0.0003199,2]
[391609717,1760701838344,-1000.0,0.00032048,5]
[391609718,1760701838354,-300.0,0.00032078,30]
[391609719,1760701838364,-300.0,0.00032078,30]
[391609720,1760701838374,-160.0,0.00032133,2]
[391609721,1760701838383,-500.0,0.0003225,5]
[391609722,1760701838398,-2460.49208732,0.00032361,2]
[391609723,1760701838410,-1500.0,0.00032596,5]
[391609724,1760701838419,-260.0,0.00032681,2]
[391609725,1760701838429,-204.0,0.00032864,2]
[391609726,1760701838441,-206.0,0.0003291,2]
[391609727,1760701838451,-2618.18975449,0.00032942,2]
[391609728,1760701838461,-150.0,0.0003296,2]
[391609729,1760701838470,-879.82,0.0003298,3]
[391609730,1760701838480,-2120.8,0.0003298,120]
[391609731,1760701838489,-105857.72046,0.0003298,2]
[391609732,1760701838498,-1408.87761269,0.00032989,2]
[391609733,1760701838507,-399.637634,0.00033165,2]
[391609734,1760701838519,-201.49630581,0.000332,117]
[391609735,1760701838528,-360.0,0.00033229,2]
[391609736,1760701838537,-204.0,0.00033252,2]
[391609737,1760701838547,-470.52426397,0.00033265,4]
[391609738,1760701838556,-250.0,0.00033304,2]
[391609739,1760701838568,-1408.87761269,0.00033307,2]
[391609740,1760701838578,-2460.49208732,0.00033373,2]
[391609741,1760701838587,-7674.72564915,0.00033373,2]
[391609742,1760701838596,-3825.68,0.000334,14]
[391609743,1760701838606,-1173.04,0.00033434,3]
[391609744,1760701838616,-586.52,0.00033434,3]
[391609745,1760701838625,-293.26,0.00033434,3]
[391609746,1760701838635,-317573.161379,0.00033434,2]
[391609747,1760701838644,-584295.225,0.00033444,2]
[391609748,1760701838653,-151.0,0.00033444,30]
[391609749,1760701838662,-154.222229,0.00033444,30]
[391609750,1760701838672,-500.0,0.00033473,5]
[391609751,1760701838682,-500.0,0.00033473,5]
[391609752,1760701838692,-500.0,0.00033473,5]
[391609753,1760701838702,-300.0,0.000336,30]
[391609754,1760701838711,-1408.87761269,0.00033603,2]
[391609755,1760701838721,-1000.0,0.0003365,2]
[391609756,1760701838731,-1000.0,0.0003365,2]
[391609757,1760701838741,-1000.0,0.0003365,2]
[391609758,1760701838750,-1000.0,0.0003365,2]
[391609759,1760701838759,-1000.0,0.0003365,2]
[391609760,1760701838769,-151.0,0.0003365,2]
[391609761,1760701838780,-151.0,0.0003365,2]
[391609762,1760701838789,-151.0,0.0003365,2]
[391609763,1760701838800,-151.30500482,0.0003365,2]
[391609764,1760701838811,-168.0,0.0003366,2]
[391609765,1760701838821,-151.0,0.0003367,30]
[391609766,1760701838831,-934872.36,0.0003367,2]
[391609767,1760701838840,-236.57,0.00033698,2]
[391609768,1760701838851,-172.61,0.00033698,2]
[391609769,1760701838860,-172.61,0.00033698,2]
[391609770,1760701838871,-172.61,0.00033698,2]
[391609771,1760701838881,-189.844526,0.00033702,10]
[391609772,1760701838891,-168.0,0.00033708,2]
[391609773,1760701838901,-236.57474852,0.00033744,2]
[391609774,1760701838912,-206.0,0.00033763,7]
[391609775,1760701838921,-236.57474848,0.00033776,2]
[391609776,1760701838931,-460.0,0.00033777,2]
[391609777,1760701838941,-800.0,0.00033795,2]
[391609778,1760701838951,-1650.886769,0.000338,13]
[391609779,1760701838961,-2120.8,0.00033801,120]
[391609780,1760701838983,-236.57474848,0.00033807,2]
[391609781,1760701838994,-189.844526,0.00033808,2]
[391609782,1760701839005,-199.0,0.00033811,7]
[391609783,1760701839015,-236.57474848,0.00033839,2]
[391609784,1760701839026,-800.0,0.00033849,2]
[391609785,1760701839036,-540.013117,0.00033853,30]
[391609786,1760701839046,-540.013117,0.00033853,30]
[391609787,1760701839057,-540.013117,0.00033853,30]
[391609788,1760701839069,-540.013117,0.00033853,30]
[391609789,1760701839082,-151.0,0.00033853,30]
[391609790,1760701839093,-151.0,0.00033853,30]
[391609791,1760701839103,-151.0,0.00033853,30]
[391609792,1760701839113,-151.0,0.00033853,30]
[391609793,1760701839123,-274.939084,0.00033853,30]
[391609794,1760701839134,-94913.75119267,0.00033864,2]
[391609795,1760701839306,-1375.39462799,0.00033864,2]
[391609808,1760701839853,-160.0,0.00030367,2]
[391609809,1760701839863,-151.0,0.00033444,30]
[391609810,1760701839874,-67.92000001,0.0003367,30]
[391609811,1760701839907,-83.07999999,0.0003367,30]
[391609812,1760701839917,-281.68297038,0.00033864,2]
[391609819,1760701842883,-520.24244959,0.00029443,2]
[391609820,1760701842894,-238.64000254,0.00029443,2]
[391609821,1760701842904,-154.75,0.0003123,15]
[391609822,1760701842915,-154.75,0.0003133,15]
[391609823,1760701842925,-154.75,0.0003143,15]
[391609824,1760701842934,-7588.17722968,0.00033864,2]
[391609825,1760701842947,-5631.126,0.00033864,2]
[391609839,1760701845870,-629.26,0.00033854,10]
[391609840,1760701845880,-260209.86797928,0.00033864,2]
[391609841,1760701845891,-402.69031254,0.0003387,7]
[391609842,1760701845900,-177.64477798,0.0003387,2]
[391609843,1760701845910,-236.57474848,0.0003387,2]
[391609844,1760701845920,-540.013117,0.0003387,30]
[391609845,1760701845930,-540.013117,0.0003387,30]
[391609846,1760701845939,-540.013117,0.0003387,30]
[391609847,1760701845949,-540.013117,0.0003387,30]
[391609848,1760701845960,-175.778211,0.0003387,30]
[391609849,1760701845970,-201.49630581,0.0003387,119]
[391609850,1760701845979,-151.0,0.0003387,30]
[391609851,1760701845989,-151.0,0.0003387,30]
[391609852,1760701845999,-151.0,0.0003387,30]
[391609853,1760701846010,-151.0,0.0003387,30]
[391609854,1760701846020,-151.0,0.0003387,30]
[391609855,1760701846029,-145851.63500081,0.0003387,7]
[391609856,1760701846049,-888.0993389,0.00031362,30]
[391609870,1760701948680,417.15472785,0.00027,2]
[391609876,1760702136294,285.5,0.00029041,120]
[391609877,1760702141830,800.0,0.00027,30]
[391609878,1760702149136,150.0,0.00025205,2]
[391609879,1760702149590,172.5,0.00025805,2]
[391609880,1760702150222,195.0,0.00026405,2]
[391609881,1760702157737,516.1,0.00027,2]
[391609889,1760702714317,-82.5,0.00027005,2]
[391609890,1760702714335,-135.0,0.00027005,2]
[391609891,1760702714345,-82.5,0.00027605,2]
[391609892,1760702766376,2688.700125,0.00025205,2]
[391609893,1760702767159,157.5,0.00025205,2]
[391609896,1760702794093,-187.09070406,0.00028011,2]
[391609921,1760702879404,417.15472785,0.00027,2]
[391609922,1760702880999,226.31,0.00015494,15]
[391609923,1760702885290,58.3483813,0.00027,3]
[391609924,1760702885312,344.34193124,0.00027,3]
[391609925,1760702892407,167.41415788,0.00025204,2]
[391609928,1760702910706,1557.13388596,0.00027,2]
[391609965,1760703031949,-841.30135762,0.00028011,2]
[391609981,1760703032096,-1656.74,0.00028693,2]
[391609983,1760703032109,-205.3262998,0.00029333,2]
[391609985,1760703032119,-215.966598,0.00029445,60]
[391609987,1760703032128,-160.0,0.00030525,2]
[391609988,1760703032139,-895.0,0.00030625,2]
[391609989,1760703032148,-1678.74887862,0.00030626,2]
[391609990,1760703032158,-938.3085852,0.00030739,2]
[391609991,1760703032168,-201.53,0.00031,2]
[391609992,1760703032177,-260.0,0.00031073,2]
[391609993,1760703032187,-400.0,0.00031093,2]
[391609994,1760703032196,-334.0,0.00031233,3]
[391609995,1760703032206,-1360.37,0.00031234,15]
[391609996,1760703032215,-165.56156063,0.00031234,2]
[391609997,1760703032224,-3313.49,0.00031301,2]
[391609998,1760703032234,-1360.37,0.00031334,15]
[391609999,1760703032244,-111.9006611,0.00031362,30]
[391610000,1760703032253,-214.8552808,0.00031425,2]
[391610001,1760703032263,-199.0,0.00031433,7]
[391610002,1760703032272,-1360.37,0.00031434,15]
[391610003,1760703032282,-168.938,0.00031434,29]
[391610004,1760703032291,-4433.23122759,0.00031453,2]
[391610005,1760703032300,-528.09,0.00031534,15]
[391610006,1760703032310,-1360.37,0.00031534,15]
[391610007,1760703032319,-360.0,0.00031621,2]
[391610008,1760703032331,-1360.37,0.00031634,15]
[391610009,1760703032340,-500.0,0.00031675,5]
[391610010,1760703032350,-262.7,0.00031707,8]
[391610011,1760703032359,-1360.37,0.00031734,15]
[391610012,1760703032369,-373.28030585,0.00031767,5]
[391610013,1760703032378,-1360.37,0.00031834,15]
[391610014,1760703032387,-168.0,0.00031845,2]
[391610015,1760703032397,-1360.37,0.00031934,15]
[391610016,1760703032407,-500.0,0.0003195,2]
[391610017,1760703032417,-396.0,0.00031963,7]
[391610018,1760703032426,-617.65805952,0.00031973,5]
[391610019,1760703032435,-500.0,0.00031973,5]
[391610020,1760703032445,-5713.20271484,0.00032,2]
[391610021,1760703032457,-5707.57588985,0.00032,2]
[391610022,1760703032472,-8579.22139531,0.00032,2]
[391610023,1760703032482,-1360.37,0.00032034,15]
[391610024,1760703032491,-165.56156058,0.00032056,2]
[391610025,1760703032500,-1360.37,0.00032134,15]
[391610026,1760703032510,-583.0,0.00032134,2]
[391610027,1760703032519,-460.0,0.00032169,2]
[391610028,1760703032529,-459.48373794,0.00032223,5]
[391610029,1760703032538,-1360.37,0.00032234,15]
[391610030,1760703032548,-1360.37,0.00032334,15]
[391610031,1760703032558,-1360.37,0.00032434,15]
[391610032,1760703032567,-230.497103,0.000325,15]
[391610033,1760703032578,-500.0,0.00032521,5]
[391610034,1760703032588,-1360.37,0.00032534,15]
[391610036,1760703032598,-1360.37,0.00032634,15]
[391610038,1760703032607,-560.0,0.00032717,2]
[391610039,1760703032616,-1360.37,0.00032734,15]
[391610041,1760703032625,-1360.37,0.00032834,15]
[391610042,1760703032634,-165.56156058,0.00032878,2]
[391610044,1760703032644,-3267.27360192,0.00032889,2]
[391610045,1760703032653,-7049.09009249,0.00032913,2]
[391610047,1760703032662,-295.35457633,0.00032927,4]
[391610048,1760703032672,-224.6210348,0.00032927,4]
[391610050,1760703032681,-500.0,0.00032933,7]
[391610052,1760703032691,-500.0,0.00032933,7]
[391610053,1760703032700,-1020.96754345,0.00032934,60]
[391610054,1760703032712,-339.40245655,0.00032934,60]
[391610055,1760703032722,-1963.64231587,0.00032942,2]
[391610056,1760703032731,-823.43,0.0003296,10]
[391610057,1760703032740,-171.07,0.0003297,3]
[391610058,1760703032750,-513.23,0.0003297,3]
[391610059,1760703032764,-167.04800177,0.00032979,7]
[391610060,1760703032774,-364.16971472,0.00032979,7]
[391610061,1760703032783,-684.27,0.0003298,3]
[391610062,1760703032792,-342.13,0.0003298,3]
[391610063,1760703032802,-11356.81279394,0.0003298,2]
[391610075,1760703037884,-455.70417096,0.0003298,2]
[391610076,1760703037896,-5665.61122813,0.0003298,2]
[391610077,1760703037937,-11697.82739265,0.0003298,2]
[391610078,1760703037948,-18016.40045213,0.0003298,2]
[391610084,1760703040061,-617.82936603,0.0003298,2]
[391610085,1760703040073,-567.41619488,0.0003298,2]
[391610118,1760703043034,-447.65,0.0003298,2]
[391610143,1760703126087,1951.0,0.00029041,120]
[391610147,1760703383574,150.0,0.00025205,2]
[391610148,1760703384668,172.5,0.00025805,2]
[391610149,1760703385124,195.0,0.00026405,2]
[391610153,1760703674631,481.79159007,0.00027,2]
[391610154,1760703825545,417.15472785,0.00027,2]
[391610157,1760704003891,150.0,0.00025205,2]
[391610158,1760704004604,172.5,0.00025805,2]
[391610159,1760704005276,195.0,0.00026405,2]
[391610163,1760704088501,480.53548528,0.0001,2]
[391610164,1760704089206,480.53548528,0.00022857,6]
[391610165,1760704089258,480.53548528,0.00016429,4]
[391610166,1760704089288,480.53548528,0.0001,2]
[391610167,1760704090208,480.53548528,0.00022857,6]
[391610168,1760704090565,480.53548528,0.0001,2]
[391610169,1760704092086,480.53548528,0.00016429,4]
[391610170,1760704092499,480.53548528,0.0001,2]
[391610182,1760704127413,402.69031254,0.00027,2]
[391610221,1760704232074,-217.5,0.00027005,2]
[391610223,1760704232084,-298.41963319,0.00027505,2]
[391610225,1760704232094,-174.71565701,0.00027605,2]
[391610227,1760704232109,-307.83878926,0.0002764,2]
[391610229,1760704232119,-339.41226126,0.0002764,2]
[391610231,1760704232128,-221.23920777,0.0002879,2]
[391610233,1760704232141,-1335.13735634,0.0002879,2]
[391610235,1760704232153,-42.71343589,0.0002879,2]
[391610237,1760704232163,-327.0,0.00029094,2]
[391610239,1760704232172,-339.9508954,0.00029095,2]
[391610241,1760704232184,-355.46398873,0.00029095,2]
[391610242,1760704232194,-300.0,0.00029285,2]
[391610244,1760704232203,-480.53548528,0.00029286,8]
[391610246,1760704232213,-480.53548528,0.00029286,8]
[391610249,1760704232222,-480.53548528,0.00029286,8]
[391610252,1760704232231,-50000.0,0.00029286,2]
[391610255,1760704232240,-666.0,0.00029622,2]
[391610257,1760704232250,-464.843016,0.00030137,120]
[391610259,1760704232260,-365.70363959,0.00030626,2]
[391610260,1760704232270,-160.0,0.0003085,2]
[391610261,1760704232279,-165.56156058,0.00031103,2]
[391610262,1760704232288,-221.98,0.00031203,3]
[391610263,1760704232297,-665.97,0.00031203,3]
[391610264,1760704232307,-260.0,0.00031398,2]
[391610265,1760704232316,-3198.18,0.00031407,2]
[391610266,1760704232326,-250.0,0.00031433,2]
[391610267,1760704232335,-420.0,0.00031586,2]
[391610268,1760704232345,-1408.87761269,0.00031887,2]
[391610269,1760704232355,-5669.3137153,0.0003189,2]
[391610270,1760704232365,-3453.15154292,0.00031901,2]
[391610271,1760704232376,-360.0,0.00031946,2]
[391610272,1760704232385,-887.93,0.0003197,3]
[391610273,1760704232395,-443.96,0.0003197,3]
[391610274,1760704232404,-254.9188003,0.00031979,2]
[391610275,1760704232414,-19768.76232518,0.0003198,2]
[391610276,1760704232430,-487.43371295,0.0003198,2]
[391610277,1760704232441,-110793.0,0.0003198,2]
[391610307,1760704237989,-100000.0,0.0003099,2]
[391610308,1760704237999,-104591.99200987,0.0003198,2]
[391610309,1760704238008,-151.0,0.00032192,2]
[391610310,1760704238017,-151.0,0.00032192,2]
[391610311,1760704238026,-151.0,0.00032192,2]
[391610312,1760704238036,-1000.0,0.00032192,2]
[391610313,1760704238045,-151.30500482,0.00032192,2]
[391610314,1760704238055,-1000.0,0.00032192,2]
[391610315,1760704238065,-1000.0,0.00032192,2]
[391610316,1760704238074,-1000.0,0.00032192,2]
[391610317,1760704238084,-1000.0,0.00032192,2]
[391610318,1760704238093,-1408.87761269,0.00032214,2]
[391610319,1760704238106,-216.67412887,0.00032238,2]
[391610320,1760704238115,-247.62757585,0.00032238,2]
[391610321,1760704238126,-386.53116918,0.00032238,2]
[391610322,1760704238136,-284.90517636,0.00032238,2]
[391610323,1760704238146,-325.60591584,0.00032238,2]
[391610324,1760704238155,-508.25048426,0.00032238,2]
[391610325,1760704238165,-3453.15154288,0.00032319,2]
[391610326,1760704238174,-307.0,0.00032353,7]
[391610327,1760704238186,-165.56156058,0.00032488,2]
[391610328,1760704238195,-460.0,0.00032494,2]
[391610329,1760704238204,-168.33328253,0.00032544,2]
[391610330,1760704238213,-1408.87761269,0.00032556,2]
[391610331,1760704238223,-443.96,0.00032573,3]
[391610332,1760704238232,-235641.188048,0.0003266,2]
[391610333,1760704238241,-6463.3469866,0.0003267,2]
[391610334,1760704238251,-1833.6672791,0.0003267,2]
[391610335,1760704238260,-47888.8712352,0.0003267,2]
[391610336,1760704238269,-505.73528046,0.000327,2]
[391610337,1760704238279,-5669.3137153,0.00032733,2]
[391610338,1760704238289,-3453.15154288,0.00032737,2]
[391610339,1760704238299,-1408.8776127,0.00032835,2]
[391610340,1760704238308,-500.63111784,0.00032873,5]
[391610341,1760704238317,-2120.8,0.00032876,120]
[391610342,1760704238327,-152.220472,0.0003288,30]
[391610343,1760704238336,-151.0,0.0003288,30]
[391610344,1760704238346,-151.0,0.0003288,30]
[391610345,1760704238355,-151.0,0.0003288,30]
[391610346,1760704238365,-151.0,0.0003288,30]
[391610347,1760704238374,-370000.0,0.0003288,2]
[391610348,1760704238385,-2127.27917552,0.00032942,2]
[391610349,1760704238394,-178.37,0.00032964,120]
[391610350,1760704238404,-500.0,0.0003298,2]
[391610351,1760704238413,-19393.63720459,0.00033,10]
[391610352,1760704238424,-877.24,0.00033,2]
[391610353,1760704238434,-21096.31903495,0.00033,30]
[391610354,1760704238443,-8669.30487677,0.00033,3]
[391610355,1760704238453,-500.0,0.00033033,2]
[391610356,1760704238462,-151.0,0.00033033,2]
[391610357,1760704238472,-660.0,0.00033033,2]
[391610358,1760704238481,-151.9727561,0.00033033,2]
[391610359,1760704238491,-151.0,0.00033033,2]
[391610360,1760704238500,-151.0,0.00033033,2]
[391610361,1760704238509,-151.0,0.00033033,2]
[391610362,1760704238519,-151.0,0.00033033,2]
[391610363,1760704238528,-151.77989384,0.00033033,2]
[391610364,1760704238538,-151.24075468,0.00033033,2]
[391610365,1760704238548,-151.0,0.00033033,2]
[391610366,1760704238557,-151.0,0.00033033,2]
[391610367,1760704238567,-500.0,0.00033033,2]
[391610368,1760704238577,-151.0,0.00033033,2]
[391610369,1760704238587,-151.0,0.00033033,2]
[391610370,1760704238596,-151.0,0.00033033,2]
[391610371,1760704238606,-500.0,0.00033033,2]
[391610372,1760704238615,-1360.37,0.00033034,60]
[391610373,1760704238625,-560.0,0.00033042,2]
[391610374,1760704238634,-500.0,0.00033088,2]
[391610375,1760704238643,-151.0,0.00033088,2]
[391610376,1760704238652,-660.0,0.00033088,2]
[391610377,1760704238661,-151.0,0.00033088,2]
[391610378,1760704238671,-176.82998238,0.00033088,2]
[391610379,1760704238681,-151.0,0.00033088,2]
[391610380,1760704238690,-151.0,0.00033088,2]
[391610381,1760704238699,-151.0,0.00033088,2]
[391610382,1760704238708,-500.0,0.00033088,2]
[391610383,1760704238718,-151.0,0.00033088,2]
[391610384,1760704238727,-151.0,0.00033088,2]
[391610385,1760704238737,-151.0,0.00033088,2]
[391610386,1760704238746,-500.0,0.00033088,2]
[391610387,1760704238755,-4032.93526713,0.00033099,2]
[391610388,1760704238765,-151.0,0.000331,16]
[391610389,1760704238775,-1360.37,0.00033134,60]
[391610390,1760704238784,-500.0,0.00033143,2]
[391610391,1760704238793,-151.0,0.00033143,2]
[391610392,1760704238802,-660.0,0.00033143,2]
[391610393,1760704238811,-210.37207137,0.00033143,2]
[391610394,1760704238821,-151.0,0.00033143,2]
[391610395,1760704238830,-151.0,0.00033143,2]
[391610396,1760704238839,-349.29659168,0.00033143,2]
[391610397,1760704238848,-151.0,0.00033143,2]
[391610398,1760704238857,-154.84377212,0.00033143,2]
[391610399,1760704238866,-151.0,0.00033143,2]
[391610400,1760704238877,-500.0,0.00033143,2]
[391610401,1760704238887,-3453.15154288,0.00033155,2]
[391610402,1760704238897,-500.0,0.00033197,2]
[391610403,1760704238906,-151.0,0.00033197,2]
[391610404,1760704238916,-660.0,0.00033197,2]
[391610405,1760704238925,-151.0,0.00033197,2]
[391610406,1760704238934,-151.0,0.00033197,2]
[391610407,1760704238943,-198.0,0.00033197,2]
[391610408,1760704238952,-161.17045613,0.00033197,2]
[391610409,1760704238961,-151.0,0.000332,20]
[391610410,1760704238971,-201.49630581,0.000332,117]
[391610411,1760704238982,-150.0,0.00033233,2]
[391610412,1760704239086,-1360.37,0.00033234,60]
[391610413,1760704239100,-500.0,0.00033252,2]
[391610414,1760704239113,-151.0,0.00033252,2]
[391610415,1760704239123,-660.0,0.00033252,2]
[391610416,1760704239133,-151.0,0.00033252,2]
[391610417,1760704239143,-151.0,0.00033252,2]
[391610418,1760704239153,-151.0,0.000333,17]
[391610419,1760704239163,-151.0,0.000333,20]
[391610420,1760704239172,-1650.886769,0.000333,13]
[391610421,1760704239184,-500.0,0.00033307,2]
[391610422,1760704239194,-218.13539866,0.00033307,2]